bitfinex-derivatives/quotes_ETHF0:USTF0_20250817
["timestamp","ask_amount","ask_price","bid_price","bid_amount"]
[1755457078446,2.908683,4461.5,4461.4,40.36]
[1755457078942,0.3512,4464.0,4461.4,43.36]
[1755457079145,0.3512,4463.8,4462.0,0.44795]
[1755457079346,0.3512,4463.4,4462.6,0.44789]
[1755457079552,0.3512,4463.4,4461.8,4.32774]
[1755457079853,0.3512,4463.4,4462.7,0.44788]
[1755457080151,0.3512,4463.9,4462.4,40.353]
[1755457080354,0.3512,4463.7,4462.9,0.44786]
[1755457080654,0.3512,4463.5,4463.3,3.2078]
[1755457080846,0.4942,4463.6,4463.4,0.44781]
[1755457081042,1.1196,4463.6,4463.4,0.44781]
[1755457081248,0.9766,4463.6,4463.4,0.44781]
[1755457081547,0.3512,4463.5,4463.3,3.2078]
[1755457081748,0.3512,4464.8,4463.6,1.11949]
[1755457081956,0.3512,4464.8,4464.5,0.4477]
[1755457082153,0.3512,4464.8,4464.2,4.32714]
[1755457082154,0.3512,4464.8,4464.2,3.2078]
[1755457082349,0.4942,4465.0,4464.3,0.44772]
[1755457082559,0.9766,4464.9,4464.2,3.2078]
[1755457082856,0.3512,4464.8,4464.7,3.2078]
[1755457083358,1.4708,4464.8,4464.1,0.44774]
[1755457083554,0.9766,4464.7,4464.3,0.44772]
[1755457083854,0.6254,4464.7,4464.4,3.2078]
[1755457084056,0.3512,4464.6,4464.4,3.2078]
[1755457084252,0.3512,4465.3,4464.4,3.2078]
[1755457084452,1.27278301,4464.8,4464.4,3.2078]
[1755457084653,0.3512,4464.6,4464.4,3.2078]
[1755457085051,1.27278301,4464.8,4464.5,0.4477]
[1755457085253,1.27278301,4464.8,4463.5,0.0224]
[1755457085254,1.29508301,4464.5,4463.1,0.44784]
[1755457085451,0.9766,4464.4,4464.3,3.2078]
[1755457085648,1.27278301,4464.5,4464.4,0.4745]
[1755457085953,1.27278301,4464.5,4464.4,0.8411]
[1755457086153,1.27278301,4464.5,4464.4,44.1751]
[1755457086453,1.27278301,4464.5,4464.4,41.1751]
[1755457087451,2.24938301,4464.5,4464.4,40.334]
[1755457087656,2.74358301,4464.5,4464.4,40.334]
[1755457088163,1.27278301,4464.5,4464.4,40.8085]
[1755457088357,1.27278301,4464.5,4464.4,40.334]
[1755457088656,1.27278301,4464.5,4464.3,3.2078]
[1755457088852,0.9766,4464.4,4464.3,3.2078]
[1755457089056,1.4708,4464.4,4464.3,3.2078]
[1755457089365,0.9766,4464.4,4464.3,3.2078]
[1755457091057,0.9766,4464.4,4464.3,43.5298]
[1755457091361,1.4708,4464.4,4464.3,3.2078]
[1755457093258,1.4708,4464.4,4464.1,40.322]
[1755457093259,1.4708,4464.2,4464.1,40.322]
[1755457094760,0.3736,4463.7,4463.2,3.2078]
[1755457095060,0.8454,4462.8,4462.2,3.2078]
[1755457095257,0.0224,4463.1,4462.2,3.2078]
[1755457095452,0.9766,4463.4,4462.2,3.2078]
[1755457095648,3.2078,4463.2,4462.2,3.2078]
[1755457095853,0.0224,4463.0,4462.2,3.2078]
[1755457096052,0.3512,4463.0,4462.2,3.65573]
[1755457096254,0.3512,4463.0,4462.3,0.44792]
[1755457096450,0.3512,4463.0,4462.2,3.2078]
[1755457096853,1.27278301,4463.6,4463.2,0.44782]
[1755457097062,1.27278301,4463.6,4463.0,40.322]
[1755457097560,1.5232,4463.3,4463.0,40.76985]
[1755457097767,3.0,4463.3,4461.9,3.7221]
[1755457097954,1.1532,4463.2,4461.9,43.5298]
[1755457098262,1.27278301,4463.6,4461.9,3.2078]
[1755457098263,4.361,4462.7,4461.9,3.2078]
[1755457098451,0.0224,4462.4,4460.6,0.5143]
[1755457098652,0.3924,4462.1,4461.4,3.2078]
[1755457098858,0.3924,4461.9,4461.4,3.2078]
[1755457099156,0.3924,4461.5,4461.4,3.2078]
[1755457099359,1.5232,4461.5,4461.4,3.2078]
[1755457099558,0.4853,4461.5,4460.9,3.2078]
[1755457099763,1.5232,4461.0,4460.9,3.2078]
[1755457100563,1.0379,4460.9,4460.0,3.65595]
[1755457100754,0.3924,4460.8,4460.0,3.65595]
[1755457100955,0.8777,4460.2,4459.6,40.327]
[1755457101155,1.5232,4459.7,4459.6,40.327]
[1755457101460,1.27278301,4461.0,4459.3,3.2078]
[1755457101461,0.3924,4460.3,4459.3,3.2078]
[1755457101656,0.3924,4460.9,4459.6,0.0224]
[1755457101858,0.3924,4460.9,4459.8,3.2078]
[1755457102067,0.3924,4460.9,4460.1,0.44814]
[1755457102264,0.4148,4460.9,4459.8,3.2078]
[1755457102562,1.5232,4460.8,4459.3,3.2078]
[1755457102765,0.8777,4460.7,4459.4,0.44821]
[1755457103065,0.3924,4460.5,4459.3,3.2078]
[1755457103467,0.6455,4460.4,4459.7,0.5367]
[1755457103655,0.3924,4460.5,4459.8,3.8577]
[1755457103860,0.3924,4460.5,4459.8,4.30587]
[1755457104067,3.2078,4460.7,4460.4,0.44811]
[1755457104376,1.27278301,4461.0,4459.9,0.3605]
[1755457104377,1.27278301,4461.0,4460.8,0.5143]
[1755457104669,1.27278301,4461.0,4460.3,3.2078]
[1755457104869,1.5232,4460.8,4459.8,3.2078]
[1755457105165,1.1308,4460.6,4459.8,3.2078]
[1755457105360,1.27278301,4460.7,4460.4,0.6499]
[1755457105557,1.27278301,4460.7,4460.3,4.01642]
[1755457105761,1.27278301,4460.7,4460.6,0.5143]
[1755457106065,1.27278301,4460.7,4460.6,1.1642]
[1755457106661,1.27278301,4460.7,4460.6,0.5143]
[1755457107467,1.27278301,4460.7,4460.6,4.372]
[1755457107867,1.66518301,4460.7,4460.0,3.8577]
[1755457108171,1.66518301,4460.7,4460.0,4.82015]
[1755457108369,1.66518301,4460.7,4460.5,3.7221]
[1755457108666,1.27278301,4460.7,4460.6,0.8748]
[1755457108865,1.27278301,4460.7,4460.6,1.5247]
[1755457109567,1.27278301,4460.7,4460.6,0.5143]
[1755457109770,2.79598301,4460.7,4459.9,0.5143]
[1755457110166,0.3924,4460.6,4459.6,3.2078]
[1755457110471,1.0379,4460.5,4459.6,3.2078]
[1755457110767,1.5232,4462.0,4460.4,0.185]
[1755457110966,0.4853,4462.7,4461.8,0.8349]
[1755457111166,0.4853,4462.7,4461.9,0.44796]
[1755457111768,0.4853,4462.7,4461.8,1.28287]
[1755457112067,1.1308,4462.7,4461.8,0.6499]
[1755457112271,0.4853,4462.7,4461.8,1.09787]
[1755457112468,1.5232,4463.0,4462.2,3.2078]
[1755457112771,1.1308,4463.0,4462.5,0.4479]
[1755457112964,0.3924,4462.9,4462.3,0.44792]
[1755457113169,0.3924,4462.9,4462.7,3.2078]
[1755457113366,3.2302,4463.6,4462.7,3.2078]
[1755457113567,3.2302,4463.6,4462.2,3.2078]
[1755457113568,1.5232,4462.8,4462.2,3.2078]
[1755457117578,0.6455,4464.1,4462.7,3.2078]
[1755457117779,0.4853,4464.0,4463.0,0.44785]
[1755457117974,0.6455,4463.9,4463.0,0.44785]
[1755457118173,0.6455,4463.9,4462.8,0.44786]
[1755457118476,0.4853,4463.8,4462.9,0.44786]
[1755457118675,0.4853,4463.8,4462.7,3.2078]
[1755457118676,0.4853,4463.8,4463.0,0.44784]
[1755457118865,0.4853,4463.8,4462.7,3.2078]
[1755457119070,0.4853,4463.8,4462.9,0.44786]
[1755457119470,0.4853,4463.8,4463.2,3.2078]
[1755457119666,0.3924,4464.3,4463.3,0.6499]
[1755457120377,1.1308,4464.2,4463.3,0.6499]
[1755457120873,1.1308,4464.2,4462.8,0.3605]
[1755457121075,0.3924,4464.0,4462.8,0.80837]
[1755457121576,0.3924,4464.0,4463.0,0.44785]
[1755457121874,0.3924,4464.0,4463.1,0.44784]
[1755457122276,0.3924,4464.0,4462.8,1.11969]
[1755457122468,0.3924,4464.0,4463.2,4.30553]
[1755457122879,0.3924,4464.0,4463.3,0.44781]
[1755457123373,0.3924,4464.0,4463.2,3.8577]
[1755457123779,0.3924,4464.0,4463.2,4.30553]
[1755457124076,0.3924,4464.0,4463.2,3.8577]
[1755457124478,0.00925042,4463.6,4463.2,3.8577]
[1755457124673,0.00925042,4463.6,4463.4,0.3605]
[1755457124876,0.00925042,4463.6,4463.5,0.4478]
[1755457125076,0.00925042,4463.6,4463.5,1.0104]
[1755457126972,0.00925042,4463.6,4463.5,0.6499]
[1755457127279,0.00925042,4463.6,4463.4,0.6499]
[1755457127775,0.00925042,4463.6,4463.5,0.6199]
[1755457128079,0.00925042,4463.6,4463.5,0.9846]
[1755457129474,3.2078,4464.8,4463.9,0.6199]
[1755457129676,0.3696,4464.9,4464.3,0.44772]
[1755457129976,3.2078,4465.4,4464.8,0.44767]
[1755457130167,3.2078,4465.4,4464.5,1.11926]
[1755457130368,3.2078,4465.4,4465.1,0.9846]
[1755457130782,1.4702,4465.3,4464.4,1.43231]
[1755457131074,3.2078,4465.9,4464.7,3.65548]
[1755457131274,3.2078,4465.9,4465.0,0.6199]
[1755457131469,3.2078,4465.9,4465.1,0.3647]
[1755457131672,0.6193,4466.8,4465.7,0.44758]
[1755457131878,0.6193,4466.8,4465.6,1.43219]
[1755457132275,0.6193,4466.8,4465.8,3.2078]
[1755457132473,0.6193,4466.8,4466.2,0.44753]
[1755457132780,0.6193,4466.8,4466.1,0.44754]
[1755457132980,0.6193,4466.8,4465.9,0.44756]
[1755457133279,0.6193,4466.8,4465.8,3.2078]
[1755457133578,0.6193,4466.8,4465.9,0.44756]
[1755457134390,0.3696,4466.4,4465.7,0.44758]
[1755457134680,0.3696,4466.4,4465.4,0.44761]
[1755457134880,0.3696,4466.4,4465.6,0.44759]
[1755457135185,0.3696,4466.4,4465.5,0.9846]
[1755457135386,0.6193,4466.3,4465.5,1.0675]
[1755457135677,0.6193,4467.0,4465.6,4.1924]
[1755457135983,0.8509,4466.9,4466.3,0.44752]
[1755457136282,0.8509,4466.9,4466.0,0.44755]
[1755457136483,0.6193,4466.8,4465.9,0.6199]
[1755457136678,0.6193,4466.8,4466.0,0.44755]
[1755457137080,0.6193,4466.8,4466.1,0.3647]
[1755457137279,1.4702,4467.1,4466.2,0.44753]
[1755457137476,1.4702,4467.1,4465.9,0.9846]
[1755457137477,0.6193,4467.1,4465.9,0.9846]
[1755457137678,0.8509,4466.8,4466.1,0.44754]
[1755457137874,0.6193,4466.7,4466.2,0.44753]
[1755457138076,1.4702,4466.9,4466.1,0.44754]
[1755457138375,0.3696,4466.9,4466.2,0.44753]
[1755457138580,0.6193,4466.8,4466.1,0.44754]
[1755457138783,0.1,4467.2,4466.1,3.5725]
[1755457138985,0.1,4467.2,4465.8,0.44757]
[1755457139182,0.3696,4466.9,4465.8,3.2078]
[1755457139493,1.4702,4466.9,4466.2,0.44753]
[1755457139979,0.3696,4466.9,4466.7,0.6199]
[1755457140176,0.3696,4466.9,4466.7,1.06738]
[1755457140382,0.1,4467.2,4466.3,0.3647]
[1755457140383,0.1,4467.2,4466.4,0.9846]
[1755457140588,0.1,4467.2,4466.9,0.44746]
[1755457140884,0.1,4467.2,4467.1,0.44744]
[1755457141081,0.1,4467.2,4467.1,0.9846]
[1755457141383,0.1,4467.2,4467.1,1.43204]
[1755457142781,0.1,4467.2,4467.1,4.43204]
[1755457142983,3.2078,4468.0,4467.9,0.44736]
[1755457143184,3.2078,4468.0,4467.9,1.06726]
[1755457144086,1.4702,4469.0,4468.0,1.11839]
[1755457144280,1.4702,4469.0,4468.0,1.11838]
[1755457144480,1.4702,4469.0,4468.0,1.11839]
[1755457144685,1.4702,4469.0,4468.4,3.2078]
[1755457144885,0.9889,4468.9,4468.5,0.4473]
[1755457145187,0.9889,4468.9,4467.5,1.4832]
[1755457145188,0.6193,4468.1,4467.2,3.2078]
[1755457145384,0.4813,4467.7,4467.2,3.65523]
[1755457145577,1.4702,4468.5,4467.2,3.65523]
[1755457145783,1.4702,4468.4,4467.7,0.44738]
[1755457145977,1.4702,4468.4,4467.2,3.2078]
[1755457145978,1.4702,4468.4,4467.3,1.11856]
[1755457146282,1.4702,4468.4,4466.7,0.0223]
[1755457146283,0.3696,4468.3,4467.7,3.2078]
[1755457146691,0.3696,4468.3,4467.8,0.44737]
[1755457146988,1.4702,4468.9,4467.8,0.44737]
[1755457147187,1.4702,4468.7,4467.0,3.2078]
[1755457147385,1.4702,4468.6,4467.3,0.44742]
[1755457147578,32.242,4471.2,4467.6,0.44739]
[1755457147579,1.4702,4468.4,4467.6,0.44739]
[1755457147884,42.516,4471.7,4467.1,1.73851]
[1755457147885,0.8509,4470.2,4469.1,0.6199]
[1755457148086,0.88615859,4469.9,4469.3,3.2078]
[1755457148282,0.88615859,4469.9,4468.8,3.2078]
[1755457148483,0.3696,4469.8,4468.8,3.2078]
[1755457148681,0.4813,4469.5,4468.8,3.2078]
[1755457148887,0.4813,4469.3,4468.8,3.2078]
[1755457149181,0.3696,4469.0,4468.8,3.2078]
[1755457149397,0.8509,4468.9,4468.8,3.2078]
[1755457149794,1.4702,4468.9,4468.8,3.2078]
[1755457150584,1.4702,4468.9,4468.6,0.44729]
[1755457150979,0.3696,4469.4,4469.1,0.44724]
[1755457151287,0.9889,4469.8,4469.6,0.44719]
[1755457151487,0.03525859,4469.9,4469.7,0.6199]
[1755457151985,0.03525859,4469.9,4469.8,3.2078]
[1755457152287,0.03525859,4469.9,4469.8,3.8277]
[1755457152886,3.5774,4471.3,4470.0,0.9846]
[1755457153086,3.5774,4471.3,4470.3,3.2078]
[1755457153087,1.4702,4471.2,4470.3,3.2078]
[1755457153288,0.8509,4470.6,4468.6,3.2078]
[1755457153487,0.4813,4469.9,4468.7,0.44728]
[1755457153789,0.3696,4469.7,4468.6,3.2078]
[1755457153985,0.3696,4469.3,4468.6,3.2078]
[1755457154186,1.1006,4469.2,4468.6,3.65509]
[1755457154494,1.1006,4469.2,4468.6,3.2078]
[1755457155291,1.1006,4469.2,4468.6,3.65509]
[1755457155593,0.3696,4468.9,4468.6,3.2078]
[1755457155783,0.6193,4468.9,4468.6,3.2078]
[1755457155986,0.9889,4468.6,4468.0,3.2078]
[1755457156385,0.6193,4468.4,4467.5,3.2078]
[1755457156585,0.8509,4468.1,4467.5,3.2078]
[1755457156893,0.8509,4468.1,4467.5,3.6552]
[1755457157096,0.8509,4468.1,4467.5,3.2078]
[1755457157589,0.9912,4468.0,4467.5,3.2078]
[1755457157887,0.5159,4468.4,4467.0,3.2078]
[1755457158089,4.7149,4468.2,4467.0,3.2078]
[1755457158292,0.0223,4467.9,4466.5,3.2078]
[1755457158489,3.2078,4467.1,4466.1,0.10075792]
[1755457158788,0.5159,4466.8,4466.1,0.10075792]
[1755457159293,0.3685,4467.3,4466.2,0.6145]
[1755457159494,0.3685,4467.3,4466.3,0.44752]
[1755457159793,0.3685,4467.3,4466.5,3.2078]
[1755457160294,3.2078,4468.3,4467.0,3.2078]
[1755457160494,0.9912,4467.9,4467.0,3.2078]
[1755457160694,0.54453679,4467.8,4467.0,3.65525]
[1755457160893,0.9912,4467.9,4467.0,3.65525]
[1755457161190,3.2078,4468.3,4467.9,0.44736]
[1755457161390,0.3685,4468.7,4467.9,0.6145]
[1755457161597,0.5159,4468.9,4468.0,3.2078]
[1755457161893,0.5159,4468.9,4468.1,0.44734]
[1755457162088,1.1386,4468.9,4468.0,3.2078]
[1755457162295,0.3685,4468.8,4468.0,3.2078]
[1755457163995,1.1386,4468.7,4468.0,3.2078]
[1755457164197,1.1386,4468.7,4467.5,3.2078]
[1755457164397,0.3685,4468.6,4467.5,3.2078]
[1755457164690,0.6227,4468.5,4467.5,3.2078]
[1755457164898,0.8844,4468.4,4467.5,3.2078]
[1755457165389,0.9912,4468.3,4467.5,3.2078]
[1755457165590,0.9912,4468.1,4467.5,3.2078]
[1755457165791,3.2078,4468.2,4467.5,3.2078]
[1755457165987,3.2078,4468.2,4466.8,32.228]
[1755457166193,0.5454974,4468.1,4466.8,32.228]
[1755457166388,0.5159,4467.6,4466.5,0.4475]
[1755457166588,0.5159,4467.6,4466.4,3.2078]
[1755457166589,0.9912,4467.5,4466.4,3.65531]
[1755457167190,0.5159,4467.4,4466.4,3.65531]
[1755457167392,0.6227,4467.2,4466.4,3.2078]
[1755457167594,0.8844,4467.1,4466.4,3.2078]
[1755457167992,0.8844,4467.1,4466.4,3.65531]
[1755457168292,0.8844,4467.1,4466.4,3.2078]
[1755457168692,0.8844,4467.1,4466.4,3.8223]
[1755457168902,0.8844,4467.1,4466.5,0.4475]
[1755457169392,0.5159,4467.6,4466.8,0.6145]
[1755457169588,3.5763,4467.7,4467.2,0.6145]
[1755457169797,0.5159,4468.2,4467.5,0.6145]
[1755457170094,0.3685,4468.3,4467.5,0.6145]
[1755457170401,0.3685,4468.8,4467.7,0.44738]
[1755457170598,0.3685,4468.8,4468.0,0.6145]
[1755457170902,0.3685,4468.8,4468.4,0.80081]
[1755457171196,3.2078,4469.1,4468.7,0.6145]
[1755457171394,0.3685,4469.0,4468.5,3.2078]
[1755457171593,0.3685,4469.0,4468.6,0.6145]
[1755457171797,0.3685,4469.0,4468.7,0.6145]
[1755457171995,0.5159,4469.5,4468.6,1.06179]
[1755457173001,0.5159,4469.5,4468.8,0.44727]
[1755457173197,0.3685,4470.1,4469.2,0.44723]
[1755457173401,0.3685,4470.1,4469.4,0.44721]
[1755457173704,0.3685,4470.1,4469.6,0.44719]
[1755457173997,0.3685,4470.1,4469.6,0.3535]
[1755457174299,0.3685,4470.1,4470.0,0.6145]
[1755457175501,0.3685,4470.1,4469.5,3.2078]
[1755457176807,0.3685,4470.1,4469.9,0.6145]
[1755457179007,0.3685,4470.1,4470.0,3.2078]
[1755457179210,0.3685,4470.1,4470.0,0.6145]
[1755457180008,1.5071,4470.1,4469.9,3.2078]
[1755457180412,1.5071,4470.0,4469.9,3.2078]
[1755457180918,0.8844,4470.0,4469.9,3.2078]
[1755457181313,0.3685,4470.0,4469.9,3.8223]
[1755457181710,1.1386,4470.5,4469.9,3.8223]
[1755457183314,1.1386,4470.5,4470.0,0.44716]
[1755457183521,0.3685,4470.4,4470.1,0.6145]
[1755457183715,0.3685,4470.3,4470.1,0.6145]
[1755457183910,0.6227,4470.5,4470.1,0.6145]
[1755457184118,0.6227,4470.4,4470.1,0.6145]
[1755457184423,0.8844,4470.2,4470.0,0.6145]
[1755457184815,0.8844,4470.2,4469.9,3.2078]
[1755457185019,0.8844,4470.2,4470.1,0.6145]
[1755457185212,0.5159,4471.0,4470.1,0.6145]
[1755457185412,0.8844,4471.0,4470.1,0.6145]
[1755457185920,0.5159,4471.0,4470.1,0.6145]
[1755457186119,0.3685,4470.9,4470.1,0.6145]
[1755457187415,0.3685,4470.4,4469.9,3.2078]
[1755457187616,0.6227,4470.3,4469.4,3.2078]
[1755457187821,1.4416,4470.4,4469.4,3.2078]
[1755457188017,3.2078,4470.6,4469.1,1.02664]
[1755457188018,3.2078,4469.9,4469.1,1.02664]
[1755457188322,1.4416,4469.8,4469.1,0.5794]
[1755457188622,1.4416,4469.8,4468.9,3.2078]
[1755457188824,1.0759,4469.7,4468.9,3.2078]
[1755457189019,0.3657,4469.6,4468.9,3.2078]
[1755457189821,0.3657,4469.6,4469.2,0.44724]
[1755457190024,0.3657,4469.6,4469.0,0.5794]
[1755457190822,3.2078,4470.1,4469.0,0.5794]
[1755457191126,0.849,4470.5,4469.2,0.5794]
[1755457191326,1.4416,4470.8,4469.4,3.2078]
[1755457191729,1.0759,4470.7,4469.4,3.2078]
[1755457191916,1.0759,4470.5,4469.4,3.2078]
[1755457192121,0.3657,4470.4,4469.4,3.2078]
[1755457192624,0.3657,4470.4,4469.7,1.02659]
[1755457192824,0.3657,4470.4,4469.7,0.5794]
[1755457193527,0.3657,4470.4,4470.0,0.44716]
[1755457193727,0.3657,4470.4,4470.1,0.3819]
[1755457193929,0.3657,4470.4,4469.9,0.5794]
[1755457194131,0.3657,4470.4,4470.1,0.3819]
[1755457194329,0.3657,4470.4,4470.2,0.5794]
[1755457194628,0.3657,4470.4,4470.3,0.5794]
[1755457194932,0.849,4470.4,4470.3,0.5794]
[1755457195133,0.3657,4470.8,4470.3,0.5794]
[1755457195324,3.2078,4470.9,4470.3,0.9613]
[1755457195631,0.18270106,4473.4,4469.8,1.11795]
[1755457195632,0.5926,4471.1,4470.5,3.2078]
[1755457195825,3.2078,4471.5,4470.5,3.2078]
[1755457195826,1.4416,4471.4,4470.5,3.2078]
[1755457196127,3.2078,4471.5,4470.5,3.2078]
[1755457196332,0.3657,4471.3,4470.5,3.6549]
[1755457196528,0.3657,4471.1,4470.6,0.44709]
[1755457196728,0.3657,4471.1,4470.5,3.2078]
[1755457196923,0.3657,4470.8,4470.5,3.2078]
[1755457197128,0.849,4470.8,4470.7,0.5794]
[1755457197322,0.849,4470.8,4470.7,1.02648]
[1755457197527,1.4416,4471.4,4470.5,3.65491]
[1755457197730,1.4416,4471.3,4470.6,0.44709]
[1755457197926,1.4416,4471.1,4470.5,3.6549]
[1755457198224,0.4833,4470.9,4470.5,3.6549]
[1755457198425,0.9583,4471.3,4470.5,3.6549]
[1755457198625,0.3657,4471.0,4470.5,3.2078]
[1755457198826,0.3657,4470.8,4470.7,0.44708]
[1755457199126,0.3657,4470.8,4470.7,1.02648]
[1755457200022,0.9583,4471.4,4470.7,0.5794]
[1755457200425,0.4833,4471.3,4470.7,0.5794]
[1755457200728,3.2078,4471.5,4470.6,0.44709]
[1755457200729,1.4416,4470.9,4470.6,0.44709]
[1755457200933,0.5926,4470.7,4470.5,3.2078]
[1755457201140,3.2078,4471.5,4470.6,0.4471]
[1755457201141,1.0759,4471.4,4470.6,0.4471]
[1755457201340,0.849,4471.2,4470.5,3.2078]
[1755457201633,0.849,4471.0,4470.3,0.5794]
[1755457201824,0.3657,4470.9,4470.4,0.44712]
[1755457202024,0.3657,4471.0,4470.5,0.44711]
[1755457202230,0.3657,4470.9,4470.6,0.5794]
[1755457202433,0.3657,4470.9,4470.5,0.82901]
[1755457202629,0.5926,4471.1,4470.5,0.82901]
[1755457202934,0.3657,4470.8,4470.7,0.5794]
[1755457203331,0.5926,4471.1,4470.7,0.5794]
[1755457203524,3.2078,4471.5,4470.7,0.5794]
[1755457203525,3.2078,4471.5,4470.8,0.3819]
[1755457203733,3.5735,4472.0,4471.2,0.9613]
[1755457203932,3.5735,4472.0,4471.5,0.44701]
[1755457204137,3.5735,4472.0,4471.7,0.3819]
[1755457204430,3.2078,4472.0,4471.9,0.5794]
[1755457204635,3.6911,4472.0,4471.9,0.5794]
[1755457204936,0.3657,4471.9,4470.9,3.7872]
[1755457205133,0.4833,4471.8,4470.9,3.7872]
[1755457205328,0.3657,4471.6,4470.9,3.7872]
[1755457205530,0.849,4471.4,4470.4,0.44712]
[1755457206034,0.849,4471.4,4470.7,3.2078]
[1755457206332,0.849,4471.4,4470.7,3.20180039]
[1755457206539,0.849,4472.4,4471.3,1.02643]
[1755457206728,0.849,4472.4,4471.3,1.02642]
[1755457206929,0.849,4472.4,4471.2,3.5897]
[1755457206930,0.5926,4472.7,4472.3,0.44693]
[1755457207139,0.849,4472.9,4472.2,0.44694]
[1755457207436,0.849,4472.9,4472.5,0.9613]
[1755457207629,0.849,4472.9,4472.6,0.5794]
[1755457207835,3.2078,4473.0,4472.6,0.5794]
[1755457208035,3.2078,4473.0,4472.7,0.3819]
[1755457208241,3.2078,4473.0,4470.8,2.23542]
[1755457208242,0.849,4473.4,4472.5,1.02631]
[1755457208534,1.4639,4472.9,4471.6,3.6548]
[1755457208730,1.0759,4472.8,4471.6,3.2078]
[1755457208931,1.4416,4472.4,4471.2,0.5794]
[1755457209135,1.4416,4472.4,4471.4,0.5794]
[1755457209336,0.3657,4472.3,4471.4,0.5794]
[1755457209630,0.9583,4472.1,4471.4,0.5794]
[1755457209830,0.3657,4471.9,4470.8,0.3819]
[1755457210041,32.206,4474.0,4470.8,0.3819]
[1755457210042,0.388,4471.3,4470.8,0.5794]
[1755457210234,0.6149,4470.4,4469.3,3.2078]
[1755457210433,0.849,4470.1,4469.3,3.2078]
[1755457210936,0.849,4470.1,4468.3,0.18274617]
[1755457210937,0.3657,4469.5,4468.5,3.2078]
[1755457211140,0.5926,4469.5,4468.5,3.2078]
[1755457211440,0.0223,4469.2,4467.8,3.7872]
[1755457211745,1.4416,4469.0,4467.8,3.7872]
[1755457212042,0.3657,4468.9,4467.9,0.9613]
[1755457212242,32.206,4471.8,4468.8,0.5794]
[1755457212243,0.849,4469.6,4468.8,0.5794]
[1755457212737,3.2078,4469.9,4468.9,0.3819]
[1755457212937,0.4833,4470.1,4469.3,0.5794]
[1755457213244,0.3657,4470.0,4469.3,0.3819]
[1755457213446,0.3657,4470.5,4469.4,1.02662]
[1755457213642,0.3657,4470.5,4469.4,0.5794]
[1755457213941,0.3657,4471.0,4470.2,0.9613]
[1755457214142,0.5926,4471.2,4470.5,0.4471]
[1755457214338,0.3657,4471.4,4470.6,4.1691]
[1755457214538,0.5926,4471.8,4470.7,0.5794]
[1755457214742,0.5926,4471.8,4470.8,0.44708]
[1755457214948,0.5926,4471.8,4471.0,0.44705]
[1755457215240,0.3657,4472.0,4471.2,3.2078]
[1755457215641,0.5926,4472.4,4471.2,3.2078]
[1755457215943,0.3657,4472.2,4471.5,0.44701]
[1755457216249,0.3657,4472.2,4471.8,0.3819]
[1755457216438,0.3657,4472.1,4472.0,0.5794]
[1755457216843,0.3657,4472.1,4471.7,3.2078]
[1755457217140,0.3657,4472.0,4471.9,0.5794]
[1755457217849,0.4753,4471.8,4471.0,0.6049]
[1755457218050,0.8212,4471.8,4471.0,0.6049]
[1755457218247,0.8212,4471.8,4471.0,1.05195]
[1755457218445,0.0223,4471.4,4470.9,3.2078]
[1755457218754,0.0223,4471.4,4469.8,0.9554]
[1755457218755,3.2078,4471.4,4470.3,3.2078]
[1755457218941,0.3459,4471.1,4470.3,3.2078]
[1755457219243,0.3459,4471.1,4470.3,3.8127]
[1755457219442,0.3459,4471.8,4470.9,0.44707]
[1755457219647,0.3459,4471.8,4470.5,0.9554]
[1755457219648,0.5829,4471.9,4470.7,1.11774]
[1755457219846,0.5829,4471.9,4470.2,1.11786]
[1755457219847,0.5829,4471.9,4471.2,0.6049]
[1755457220049,0.3459,4472.1,4471.0,0.79756]
[1755457220050,0.3459,4471.7,4471.0,3.2078]
[1755457220349,0.4753,4471.6,4471.0,3.2078]
[1755457220549,0.8212,4471.4,4470.4,1.05202]
[1755457220747,0.3459,4471.3,4470.6,0.44709]
[1755457220944,0.5829,4471.1,4470.4,0.6049]
[1755457221150,0.8212,4471.7,4470.3,0.44713]
[1755457221344,3.2078,4471.8,4470.3,0.6049]
[1755457221651,0.3459,4471.6,4470.5,0.44711]
[1755457222158,0.4753,4471.5,4470.6,3.2078]
[1755457222451,0.9288,4471.4,4470.6,3.2078]
[1755457223451,0.9288,4471.4,4470.7,0.6049]
[1755457223647,0.3459,4471.4,4471.1,0.3505]
[1755457223848,3.2078,4471.8,4471.1,0.9554]
[1755457224244,3.2078,4471.8,4471.1,0.6049]
[1755457224650,0.3459,4471.7,4471.1,0.6049]
[1755457224844,3.2078,4471.8,4471.1,0.6049]
[1755457225044,3.2078,4471.8,4471.4,0.3505]
[1755457225251,3.6831,4471.8,4471.5,0.6049]
[1755457225555,0.3459,4471.4,4471.1,0.6049]
[1755457225848,0.5829,4471.4,4470.5,3.2078]
[1755457226051,3.2078,4471.8,4470.5,3.2078]
[1755457226357,0.3459,4471.8,4471.4,0.44702]
[1755457226555,0.3459,4471.8,4471.5,0.6049]
[1755457226854,0.3459,4471.8,4471.6,0.6049]
[1755457227251,0.3459,4471.7,4471.6,0.6049]
[1755457227647,0.8212,4471.7,4471.6,0.6049]
[1755457227853,0.9288,4472.3,4471.6,0.6049]
[1755457228055,0.5829,4472.3,4471.5,3.2078]
[1755457228262,0.5829,4472.3,4471.8,0.44697]
[1755457228450,0.5829,4472.3,4471.5,3.2078]